fUSD/lending_fUSD_20240708
["ID","MTS","AMOUNT","RATE_DAILY","PERIOD"]
[331511998,1720445056075,-629.86,0.00053698,120]
[331511999,1720445056163,-1153.51,0.00053698,120]
[331512000,1720445056251,-500.0,0.00053698,120]
[331512001,1720445056340,-742.91,0.00053698,120]
[331512002,1720445056428,-683.08,0.00053698,120]
[331512003,1720445056514,-869.05,0.00053698,120]
[331512004,1720445056791,-1252.26,0.00053698,120]
[331512005,1720445056878,-728.18,0.00053698,120]
[331512006,1720445056968,-1516.47,0.00053698,120]
[331512007,1720445057057,-964.36,0.00053698,120]
[331512008,1720445057146,-1626.66,0.00053698,120]
[331512009,1720445057231,-413.72,0.00053698,120]
[331512010,1720445057319,-150.0,0.000538,40]
[331512011,1720445057407,-3021.6750298,0.0005388,90]
[331512012,1720445057497,-500.0,0.00053972,90]
[331512013,1720445057588,-500.0,0.00053972,90]
[331512014,1720445057679,-500.0,0.00053972,90]
[331512015,1720445057767,-501.90725194,0.00053972,90]
[331512016,1720445057854,-2078.73,0.00053972,120]
[331512017,1720445057945,-754.88,0.00053972,120]
[331512018,1720445058033,-500.0,0.00053972,120]
[331512019,1720445058130,-1684.15,0.00053972,120]
[331512020,1720445058226,-500.0,0.00053972,120]
[331512021,1720445058322,-1733.81,0.00053972,120]
[331512022,1720445058414,-1653.08,0.00053972,120]
[331512023,1720445058501,-500.0,0.00053972,120]
[331512024,1720445058589,-684.17,0.00053972,120]
[331512025,1720445058676,-626.33,0.00053972,120]
[331512026,1720445058760,-1183.41,0.00053972,120]
[331512027,1720445058846,-697.42,0.00053972,120]
[331512028,1720445058932,-1492.66,0.00053972,120]
[331512029,1720445059018,-893.27,0.00053972,120]
[331512030,1720445059114,-687.27,0.00053972,120]
[331512031,1720445059206,-500.0,0.00053972,120]
[331512032,1720445059297,-500.0,0.00053972,120]
[331512033,1720445059390,-578.06,0.00053972,120]
[331512034,1720445059481,-500.0,0.00053972,120]
[331512035,1720445059570,-929.58,0.00053972,120]
[331512036,1720445059656,-628.14,0.00053972,120]
[331512037,1720445059742,-575.43,0.00053972,120]
[331512038,1720445059829,-500.0,0.00053972,120]
[331512039,1720445059917,-606.58,0.00053972,120]
[331512040,1720445060004,-500.0,0.00053972,120]
[331512041,1720445060092,-500.0,0.00053972,120]
[331512042,1720445060179,-1428.1,0.00053972,120]
[331512043,1720445060268,-592.08,0.00053972,120]
[331512044,1720445060354,-599.01,0.00053972,120]
[331512045,1720445060439,-500.0,0.00053972,120]
[331512046,1720445060526,-500.0,0.00053972,120]
[331512047,1720445060616,-527.34,0.00053972,120]
[331512048,1720445060703,-500.0,0.00053972,120]
[331512049,1720445060790,-500.0,0.00053972,120]
[331512050,1720445060875,-2303.83,0.00053972,120]
[331512051,1720445060963,-1030.01,0.00053972,120]
[331512052,1720445061050,-500.0,0.00053972,120]
[331512053,1720445061148,-1129.3,0.00053972,120]
[331512054,1720445061246,-500.0,0.00053972,120]
[331512055,1720445061344,-500.0,0.00053972,120]
[331512056,1720445061429,-537.46,0.00053972,120]
[331512057,1720445061513,-779.78,0.00053972,120]
[331512058,1720445061599,-745.19,0.00053972,120]
[331512059,1720445061685,-731.02,0.00053972,120]
[331512060,1720445061766,-500.0,0.00053972,120]
[331512061,1720445061848,-412.31780383,0.00053972,120]
[331512062,1720445061933,-656.72,0.00053972,120]
[331512063,1720445062024,-500.0,0.00053972,120]
[331512064,1720445062117,-1102.07,0.00053972,120]
[331512065,1720445062209,-500.0,0.00053972,120]
[331512066,1720445062300,-500.0,0.00053972,120]
[331512067,1720445062381,-500.0,0.00053972,120]
[331512068,1720445062465,-500.0,0.00053972,120]
[331512069,1720445062549,-804.05,0.00053972,120]
[331512070,1720445062632,-968.64,0.00053972,120]
[331512071,1720445062713,-1082.19,0.00053972,120]
[331512072,1720445062799,-1570.5,0.00053972,120]
[331512073,1720445062884,-1935.41,0.00053972,120]
[331512074,1720445062968,-5085.83,0.00053972,120]
[331512075,1720445063053,-771.26,0.00053972,120]
[331512076,1720445063152,-813.82,0.00053972,120]
[331512077,1720445063247,-1256.69,0.00053972,120]
[331512078,1720445063342,-530.51,0.00053972,120]
[331512079,1720445063429,-500.0,0.00053972,120]
[331512080,1720445063516,-500.0,0.00053972,120]
[331512081,1720445063605,-915.13,0.00053972,120]
[331512082,1720445063696,-511.24,0.00053972,120]
[331512083,1720445063787,-2062.26,0.00053972,120]
[331512084,1720445063875,-2547.29,0.00053972,120]
[331512085,1720445063969,-722.73,0.00053972,120]
[331512086,1720445064068,-1773.39,0.00053972,120]
[331512087,1720445064166,-962.79,0.00053972,120]
[331512088,1720445064263,-1826.77,0.00053972,120]
[331512089,1720445064355,-1768.04,0.00053972,120]
[331512090,1720445064448,-1447.56,0.00053972,120]
[331512091,1720445064543,-1801.6,0.00053972,120]
[331512092,1720445064634,-2861.76,0.00053972,120]
[331512093,1720445064727,-1122.87,0.00053972,120]
[331512094,1720445064819,-526.91,0.00053972,120]
[331512095,1720445064913,-686.39,0.00053972,120]
[331512096,1720445065010,-500.0,0.00053972,120]
[331512097,1720445065123,-1136.27,0.00053972,120]
[331512098,1720445065220,-3164.35,0.00053972,120]
[331512099,1720445065314,-505.54,0.00053972,120]
[331512100,1720445065408,-1162.49,0.00053972,120]
[331512101,1720445065501,-1906.95,0.00053972,120]
[331512102,1720445065595,-1298.4,0.00053972,120]
[331512103,1720445065689,-1181.68,0.00053972,120]
[331512104,1720445065780,-2349.1,0.00053972,120]
[331512105,1720445065874,-811.45,0.00053972,120]
[331512106,1720445065972,-759.35,0.00053972,120]
[331512107,1720445066068,-2038.75,0.00053972,120]
[331512108,1720445066358,-1664.25,0.00053972,120]
[331512109,1720445066458,-858.68,0.00053972,120]
[331512110,1720445066560,-1349.79,0.00053972,120]
[331512111,1720445066665,-502.55,0.00053972,120]
[331512112,1720445066771,-3020.56,0.00053972,120]
[331512113,1720445066865,-1293.82,0.00053972,120]
[331512114,1720445066958,-1674.53,0.00053972,120]
[331512115,1720445067053,-1078.52,0.00053972,120]
[331512116,1720445067144,-625.62,0.00053972,120]
[331512117,1720445067234,-834.62,0.00053972,120]
[331512118,1720445067323,-500.0,0.00053972,120]
[331512119,1720445067412,-1390.62,0.00053972,120]
[331512120,1720445067507,-1406.2,0.00053972,120]
[331512121,1720445067601,-669.87,0.00053972,120]
[331512122,1720445067696,-171.42602983,0.00053972,120]
[331512123,1720445067785,-500.0,0.00053972,120]
[331512124,1720445067876,-728.82,0.00053972,120]
[331512125,1720445067965,-2399.28,0.00053972,120]
[331512126,1720445068057,-1434.06,0.00053972,120]
[331512127,1720445068157,-500.0,0.00053972,120]
[331512128,1720445068258,-510.34,0.00053972,120]
[331512129,1720445068355,-2007.19,0.00053972,120]
[331512130,1720445068448,-1253.66,0.00053972,120]
[331512131,1720445068546,-1628.65,0.00053972,120]
[331512132,1720445068642,-1435.39,0.00053972,120]
[331512133,1720445068732,-2683.83,0.00053972,120]
[331512134,1720445068822,-1226.3,0.00053972,120]
[331512135,1720445068911,-856.13,0.00053972,120]
[331512136,1720445069004,-1397.31,0.00053972,120]
[331512137,1720445069099,-602.51,0.00053972,120]
[331512138,1720445069194,-667.55,0.00053972,120]
[331512139,1720445069290,-500.0,0.00053972,120]
[331512140,1720445069382,-1620.69,0.00053972,120]
[331512141,1720445069476,-812.96,0.00053972,120]
[331512142,1720445069568,-2144.73,0.00053972,120]
[331512143,1720445069662,-3560.63,0.00053972,120]
[331512144,1720445069752,-1545.37,0.00053972,120]
[331512145,1720445069845,-505.85,0.00053972,120]
[331512146,1720445069938,-801.42,0.00053972,120]
[331512147,1720445070031,-3858.43,0.00053972,120]
[331512148,1720445070123,-4446.26,0.00053972,120]
[331512149,1720445070213,-576.89030867,0.00053972,120]
[331512150,1720445070305,-737.86,0.00053972,120]
[331512151,1720445070395,-564.21,0.00053972,120]
[331512152,1720445070483,-988.15,0.00053972,120]
[331512153,1720445070569,-6909.46,0.00053972,120]
[331512154,1720445070658,-6124.77,0.00053972,120]
[331512155,1720445070745,-7434.29,0.00053972,120]
[331512156,1720445070833,-1564.94,0.00053972,120]
[331512157,1720445070922,-3097.92,0.00053972,120]
[331512158,1720445071013,-4977.25,0.00053972,120]
[331512159,1720445071100,-2569.11,0.00053972,120]
[331512160,1720445071195,-817.49,0.00053972,120]
[331512161,1720445071291,-6557.78,0.00053972,120]
[331512162,1720445071389,-8047.98,0.00053972,120]
[331512163,1720445071482,-4890.76,0.00053972,120]
[331512164,1720445071568,-926.07,0.00053972,120]
[331512165,1720445071655,-634.86,0.00053972,120]
[331512166,1720445071741,-5071.97,0.00053972,120]
[331512167,1720445071824,-5197.47,0.00053972,120]
[331512168,1720445071908,-12824.58,0.00053972,120]
[331512169,1720445071993,-596.93092264,0.00053972,120]
[331512170,1720445072077,-737.63,0.00053972,120]
[331512171,1720445072160,-979.51,0.00053972,120]
[331512172,1720445072243,-5000.69,0.00053972,120]
[331512173,1720445072326,-1089.79,0.00053972,120]
[331512174,1720445072408,-500.0,0.00053972,120]
[331512175,1720445072490,-602.11,0.00053972,120]
[331512176,1720445072573,-3962.26,0.00053972,120]
[331512177,1720445072668,-816.01,0.00053972,120]
[331512178,1720445072760,-5967.11,0.00053972,120]
[331512179,1720445072852,-952.17,0.00053972,120]
[331512180,1720445072939,-3856.8,0.00053972,120]
[331512181,1720445073023,-1444.4,0.00053972,120]
[331512182,1720445073120,-4328.98,0.00053972,120]
[331512183,1720445073217,-1667.53,0.00053972,120]
[331512184,1720445073321,-602.68,0.00053972,120]
[331512185,1720445073416,-4918.52,0.00053972,120]
[331512186,1720445073511,-1665.81,0.00053972,120]
[331512187,1720445073605,-1892.85,0.00053972,120]
[331512188,1720445073701,-1343.01,0.00053972,120]
[331512189,1720445073793,-548.0,0.00053972,120]
[331512190,1720445073885,-3737.99,0.00053972,120]
[331512191,1720445073975,-2033.08,0.00053972,120]
[331512192,1720445074070,-681.78,0.00053972,120]
[331512193,1720445074167,-2432.96,0.00053972,120]
[331512194,1720445074263,-8334.2,0.00053972,120]
[331512195,1720445074371,-2303.71,0.00053972,120]
[331512196,1720445074464,-500.0,0.00053972,120]
[331512197,1720445074558,-7113.69,0.00053972,120]
[331512198,1720445074653,-2372.86,0.00053972,120]
[331512199,1720445074747,-6365.6,0.00053972,120]
[331512200,1720445074841,-3895.56,0.00053972,120]
[331512201,1720445074937,-4028.67,0.00053972,120]
[331512202,1720445075033,-185.17,0.00053972,120]
[331512203,1720445075127,-2932.06,0.00053972,120]
[331512204,1720445075223,-9769.22,0.00053972,120]
[331512205,1720445075320,-3721.64,0.00053972,120]
[331512206,1720445075416,-4737.12,0.00053972,120]
[331512207,1720445075511,-579.46,0.00053972,120]
[331512208,1720445075603,-1491.25,0.00053972,120]
[331512209,1720445075698,-1519.45,0.00053972,120]
[331512210,1720445075790,-9789.62,0.00053972,120]
[331512211,1720445076093,-18403.09,0.00053972,120]
[331512212,1720445076189,-5134.91,0.00053972,120]
[331512213,1720445076283,-500.0,0.00053972,120]
[331512214,1720445076381,-506.61,0.00053972,120]
[331512215,1720445076479,-2497.28,0.00053972,120]
[331512216,1720445076578,-552.8,0.00053972,120]
[331512217,1720445076679,-1667.87,0.00053972,120]
[331512218,1720445076770,-1198.7,0.00053972,120]
[331512219,1720445076863,-14120.27,0.00053972,120]
[331512220,1720445076956,-8496.48,0.00053972,120]
[331512221,1720445077049,-5150.8,0.00053972,120]
[331512222,1720445077140,-666.9,0.00053972,120]
[331512223,1720445077230,-500.0,0.00053972,120]
[331512224,1720445077325,-77163.49,0.00053972,120]
[331512225,1720445077418,-1701.37,0.00053972,120]
[331512226,1720445077512,-1695.49,0.00053972,120]
[331512227,1720445077606,-3671.69,0.00053972,120]
[331512228,1720445077697,-43789.77,0.00053972,120]
[331512229,1720445077786,-744.56,0.00053972,120]
[331512230,1720445077875,-5882.08,0.00053972,120]
[331512231,1720445077966,-4253.18,0.00053972,120]
[331512232,1720445078059,-2648.44,0.00053972,120]
[331512233,1720445078158,-2191.17,0.00053972,120]
[331512234,1720445078257,-4023.3,0.00053972,120]
[331512235,1720445078352,-290.86156197,0.00053972,120]
[331512236,1720445078443,-1885.58,0.00053972,120]
[331512237,1720445078533,-500.0,0.00053972,120]
[331512238,1720445078626,-20208.54,0.00053972,120]
[331512239,1720445078716,-5732.02,0.00053972,120]
[331512240,1720445078806,-3467.68,0.00053972,120]
[331512241,1720445078895,-3285.94,0.00053972,120]
[331512242,1720445078984,-843.34,0.00053972,120]
[331512243,1720445079077,-521.13658822,0.00053972,120]
[331512244,1720445079176,-4518.2,0.00053972,120]
[331512245,1720445079274,-579.73,0.00053972,120]
[331512246,1720445079372,-7921.19,0.00053972,120]
[331512247,1720445079470,-2995.09,0.00053972,120]
[331512248,1720445079560,-521.56,0.00053972,120]
[331512249,1720445079653,-4816.6,0.00053972,120]
[331512250,1720445079746,-500.0,0.00053972,120]
[331512251,1720445079838,-5616.29,0.00053972,120]
[331512252,1720445079929,-500.0,0.00053972,120]
[331512253,1720445080022,-4754.74,0.00053972,120]
[331512254,1720445080113,-2818.99,0.00053972,120]
[331512255,1720445080206,-3610.51,0.00053972,120]
[331512256,1720445080299,-2101.17,0.00053972,120]
[331512257,1720445080396,-7384.37,0.00053972,120]
[331512258,1720445080491,-13611.45,0.00053972,120]
[331512259,1720445080585,-500.0,0.00053972,120]
[331512260,1720445080687,-965.22,0.00053972,120]
[331512261,1720445080779,-547.56,0.00053972,120]
[331512262,1720445080869,-500.0,0.00053972,120]
[331512263,1720445080961,-583.78,0.00053972,120]
[331512264,1720445081053,-3854.26,0.00053972,120]
[331512265,1720445081144,-500.0,0.00053972,120]
[331512266,1720445081241,-10162.8,0.00053972,120]
[331512267,1720445081339,-938.43,0.00053972,120]
[331512268,1720445081437,-1124.37,0.00053972,120]
[331512269,1720445081535,-4983.01,0.00053972,120]
[331512270,1720445081627,-5118.07,0.00053972,120]
[331512271,1720445081714,-2432.5,0.00053972,120]
[331512272,1720445081804,-5565.77,0.00053972,120]
[331512273,1720445081900,-2686.57,0.00053972,120]
[331512274,1720445081994,-524.96,0.00053972,120]
[331512275,1720445082084,-500.0,0.00053972,120]
[331512276,1720445082174,-1454.12,0.00053972,120]
[331512277,1720445082265,-5036.27,0.00053972,120]
[331512278,1720445082352,-1067.33,0.00053972,120]
[331512279,1720445082441,-2304.81,0.00053972,120]
[331512280,1720445082531,-500.0,0.00053972,120]
[331512281,1720445082627,-1767.38,0.00053972,120]
[331512282,1720445082718,-5646.1,0.00053972,120]
[331512283,1720445082804,-4701.07,0.00053972,120]
[331512284,1720445082891,-9047.3,0.00053972,120]
[331512285,1720445082979,-4919.53,0.00053972,120]
[331512286,1720445083070,-288.26809978,0.00053972,120]
[331512287,1720445083169,-1659.74,0.00053972,120]
[331512288,1720445083266,-1525.81,0.00053972,120]
[331512289,1720445083361,-2133.05,0.00053972,120]
[331512290,1720445083453,-7680.57,0.00053972,120]
[331512291,1720445083544,-3352.13,0.00053972,120]
[331512292,1720445083638,-4421.49,0.00053972,120]
[331512293,1720445083731,-1759.96,0.00053972,120]
[331512294,1720445083820,-3903.92,0.00053972,120]
[331512295,1720445083909,-500.0,0.00053972,120]
[331512296,1720445083999,-1631.9,0.00053972,120]
[331512297,1720445084090,-3833.49,0.00053972,120]
[331512298,1720445084180,-5951.51,0.00053972,120]
[331512299,1720445084275,-5146.59,0.00053972,120]
[331512300,1720445084371,-2176.54,0.00053972,120]
[331512301,1720445084466,-6347.68,0.00053972,120]
[331512302,1720445084560,-1088.69,0.00053972,120]
[331512303,1720445084652,-500.0,0.00053972,120]
[331512304,1720445084745,-23579.31,0.00053972,120]
[331512305,1720445084835,-500.0,0.00053972,120]
[331512306,1720445084928,-3966.4,0.00053972,120]
[331512307,1720445085022,-2068.28,0.00053972,120]
[331512308,1720445085115,-2578.3,0.00053972,120]
[331512309,1720445085208,-3921.63,0.00053972,120]
[331512310,1720445085303,-58243.57,0.00053972,120]
[331512311,1720445085396,-508.44,0.00053972,120]
[331512312,1720445085488,-627.12,0.00053972,120]
[331512313,1720445085582,-24232.54,0.00053972,120]
[331512314,1720445085676,-511.15893931,0.00053972,120]
[331512315,1720445085998,-552.36,0.00053972,120]
[331512316,1720445086095,-5320.57,0.00053972,120]
[331512317,1720445086192,-6752.46,0.00053972,120]
[331512318,1720445086287,-623.17,0.00053972,120]
[331512319,1720445086382,-558.2,0.00053972,120]
[331512320,1720445086481,-695.92,0.00053972,120]
[331512321,1720445086580,-2080.87,0.00053972,120]
[331512322,1720445086681,-6849.11,0.00053972,120]
[331512323,1720445086777,-1687.12,0.00053972,120]
[331512324,1720445086865,-1101.67,0.00053972,120]
[331512325,1720445086957,-741.08,0.00053972,120]
[331512326,1720445087049,-500.0,0.00053972,120]
[331512327,1720445087144,-6100.12,0.00053972,120]
[331512328,1720445087239,-1353.36,0.00053972,120]
[331512329,1720445087333,-500.0,0.00053972,120]
[331512330,1720445087426,-6271.45,0.00053972,120]
[331512331,1720445087515,-2621.09,0.00053972,120]
[331512332,1720445087608,-2109.31,0.00053972,120]
[331512333,1720445087700,-12321.64,0.00053972,120]
[331512334,1720445087791,-538.98,0.00053972,120]
[331512335,1720445087879,-5668.6,0.00053972,120]
[331512336,1720445087971,-6141.18,0.00053972,120]
[331512337,1720445088061,-500.0,0.00053972,120]
[331512338,1720445088160,-768.98,0.00053972,120]
[331512339,1720445088260,-639.8,0.00053972,120]
[331512340,1720445088357,-1783.66,0.00053972,120]
[331512341,1720445088449,-1148.58,0.00053972,120]
[331512342,1720445088541,-1046.64,0.00053972,120]
[331512343,1720445088636,-500.0,0.00053972,120]
[331512344,1720445088728,-2383.64,0.00053972,120]
[331512345,1720445088819,-1380.83,0.00053972,120]
[331512346,1720445088910,-2726.39,0.00053972,120]
[331512347,1720445089002,-1348.55,0.00053972,120]
[331512348,1720445089094,-646.48,0.00053972,120]
[331512349,1720445089189,-5858.28,0.00053972,120]
[331512350,1720445089285,-3087.04,0.00053972,120]
[331512351,1720445089378,-322.1348001,0.00053972,120]
[331512352,1720445089478,-768.16,0.00053972,120]
[331512353,1720445089570,-1098.42,0.00053972,120]
[331512354,1720445089660,-1151.32,0.00053972,120]
[331512355,1720445089749,-28264.79,0.00053972,120]
[331512356,1720445089840,-500.0,0.00053972,120]
[331512357,1720445089934,-1188.45,0.00053972,120]
[331512358,1720445090027,-3804.3,0.00053972,120]
[331512359,1720445090118,-458.30712332,0.00053972,120]
[331512360,1720445090208,-634.13,0.00053972,120]
[331512361,1720445090299,-1074.63,0.00053972,120]
[331512362,1720445090390,-972.69,0.00053972,120]
[331512363,1720445090486,-5641.11,0.00053972,120]
[331512364,1720445090578,-1971.31,0.00053972,120]
[331512365,1720445090672,-500.0,0.00053972,120]
[331512366,1720445090760,-652.19,0.00053972,120]
[331512367,1720445090849,-500.0,0.00053972,120]
[331512368,1720445090942,-1216.89,0.00053972,120]
[331512369,1720445091035,-500.0,0.00053972,120]
[331512370,1720445091127,-1765.23,0.00053972,120]
[331512371,1720445091223,-500.0,0.00053972,120]
[331512372,1720445091319,-5055.86,0.00053972,120]
[331512373,1720445091414,-500.0,0.00053972,120]
[331512374,1720445091502,-711.2,0.00053972,120]
[331512375,1720445091591,-2570.12,0.00053972,120]
[331512376,1720445091678,-2420.66,0.00053972,120]
[331512377,1720445091765,-2264.16,0.00053972,120]
[331512378,1720445091854,-672.24,0.00053972,120]
[331512379,1720445091944,-3711.44,0.00053972,120]
[331512380,1720445092031,-3195.91,0.00053972,120]
[331512381,1720445092117,-2590.75,0.00053972,120]
[331512382,1720445092204,-822.01,0.00053972,120]
[331512383,1720445092292,-3178.37,0.00053972,120]
[331512384,1720445092384,-500.0,0.00053972,120]
[331512385,1720445092476,-1501.03,0.00053972,120]
[331512386,1720445092566,-4652.58,0.00053972,120]
[331512387,1720445092656,-4176.17,0.00053972,120]
[331512388,1720445092743,-607.4,0.00053972,120]
[331512389,1720445092831,-1039.34,0.00053972,120]
[331512390,1720445092923,-517.37,0.00053972,120]
[331512391,1720445093010,-724.29,0.00053972,120]
[331512392,1720445093110,-1620.57,0.00053972,120]
[331512393,1720445093208,-366.51631286,0.00053972,120]
[331512394,1720445093310,-1793.43,0.00053972,120]
[331512395,1720445093404,-12165.5,0.00053972,120]
[331512396,1720445093495,-976.96,0.00053972,120]
[331512397,1720445093586,-2857.78,0.00053972,120]
[331512398,1720445093679,-935.81,0.00053972,120]
[331512399,1720445093769,-794.19,0.00053972,120]
[331512400,1720445093861,-1096.71,0.00053972,120]
[331512401,1720445093953,-812.1,0.00053972,120]
[331512402,1720445094046,-2680.32,0.00053972,120]
[331512403,1720445094140,-1019.65,0.00053972,120]
[331512404,1720445094237,-500.0,0.00053972,120]
[331512405,1720445094335,-7204.83,0.00053972,120]
[331512406,1720445094431,-1152.98,0.00053972,120]
[331512407,1720445094530,-2326.97,0.00053972,120]
[331512408,1720445094627,-2038.8,0.00053972,120]
[331512409,1720445094723,-1237.99,0.00053972,120]
[331512410,1720445094817,-671.15,0.00053972,120]
[331512411,1720445094912,-507.99,0.00053972,120]
[331512412,1720445095007,-387.70194805,0.00053972,120]
[331512413,1720445095106,-943.16,0.00053972,120]
[331512414,1720445095207,-5931.18,0.00053972,120]
[331512415,1720445095306,-4626.82,0.00053972,120]
[331512416,1720445095408,-2327.97,0.00053972,120]
[331512417,1720445095512,-1802.66,0.00053972,120]
[331512418,1720445095614,-789.69,0.00053972,120]
[331512419,1720445095899,-2045.63,0.00053972,120]
[331512420,1720445095995,-2179.21,0.00053972,120]
[331512421,1720445096092,-679.68,0.00053972,120]
[331512422,1720445096186,-500.0,0.00053972,120]
[331512423,1720445096282,-5851.04,0.00053972,120]
[331512424,1720445096380,-790.26,0.00053972,120]
[331512425,1720445096480,-3857.14,0.00053972,120]
[331512426,1720445096578,-918.0,0.00053972,120]
[331512427,1720445096678,-1071.27,0.00053972,120]
[331512428,1720445096768,-500.0,0.00053972,120]
[331512429,1720445096857,-971.7,0.00053972,120]
[331512430,1720445096950,-9335.91,0.00053972,120]
[331512431,1720445097041,-1080.21,0.00053972,120]
[331512432,1720445097134,-1237.8,0.00053972,120]
[331512433,1720445097225,-500.0,0.00053972,120]
[331512434,1720445097318,-469.8516345,0.00053972,120]
[331512435,1720445097413,-500.0,0.00053972,120]
[331512436,1720445097509,-538.30586559,0.00053972,120]
[331512437,1720445097603,-4880.04,0.00053972,120]
[331512438,1720445097699,-836.04,0.00053972,120]
[331512439,1720445097792,-2472.65,0.00053972,120]
[331512440,1720445097890,-1021.84,0.00053972,120]
[331512441,1720445097982,-550.11,0.00053972,120]
[331512442,1720445098080,-500.0,0.00053972,120]
[331512443,1720445098179,-1033.51,0.00053972,120]
[331512444,1720445098279,-500.0,0.00053972,120]
[331512445,1720445098376,-820.16,0.00053972,120]
[331512446,1720445098468,-1695.51,0.00053972,120]
[331512447,1720445098560,-511.6,0.00053972,120]
[331512448,1720445098653,-3132.94,0.00053972,120]
[331512449,1720445098746,-1913.66,0.00053972,120]
[331512450,1720445098839,-4157.78,0.00053972,120]
[331512451,1720445098932,-1698.07,0.00053972,120]
[331512452,1720445099026,-652.08,0.00053972,120]
[331512453,1720445099123,-637.31,0.00053972,120]
[331512454,1720445099219,-572.94,0.00053972,120]
[331512455,1720445099313,-3335.79,0.00053972,120]
[331512456,1720445099409,-1910.14,0.00053972,120]
[331512457,1720445099504,-2108.8,0.00053972,120]
[331512458,1720445099595,-694.53,0.00053972,120]
[331512459,1720445099686,-1154.16,0.00053972,120]
[331512460,1720445099776,-1564.34,0.00053972,120]
[331512461,1720445099867,-3033.38,0.00053972,120]
[331512462,1720445099959,-2059.4,0.00053972,120]
[331512463,1720445100052,-500.0,0.00053972,120]
[331512464,1720445100144,-989.58,0.00053972,120]
[331512465,1720445100242,-2399.84,0.00053972,120]
[331512466,1720445100337,-500.0,0.00053972,120]
[331512467,1720445100434,-1672.29,0.00053972,120]
[331512468,1720445100528,-500.0,0.00053972,120]
[331512469,1720445100624,-1604.31,0.00053972,120]
[331512470,1720445100720,-500.0,0.00053972,120]
[331512471,1720445100813,-500.0,0.00053972,120]
[331512472,1720445100904,-2417.35,0.00053972,120]
[331512473,1720445100997,-1416.43,0.00053972,120]
[331512474,1720445101090,-691.6,0.00053972,120]
[331512475,1720445101181,-972.54,0.00053972,120]
[331512476,1720445101278,-500.0,0.00053972,120]
[331512477,1720445101375,-1198.2,0.00053972,120]
[331512478,1720445101473,-992.98,0.00053972,120]
[331512479,1720445101572,-542.92,0.00053972,120]
[331512480,1720445101661,-1035.8,0.00053972,120]
[331512481,1720445101753,-3821.85,0.00053972,120]
[331512482,1720445101845,-971.56,0.00053972,120]
[331512483,1720445101936,-587.73,0.00053972,120]
[331512484,1720445102025,-1317.09,0.00053972,120]
[331512485,1720445102114,-1389.08,0.00053972,120]
[331512486,1720445102202,-1639.49,0.00053972,120]
[331512487,1720445102292,-867.82,0.00053972,120]
[331512488,1720445102383,-500.0,0.00053972,120]
[331512489,1720445102471,-500.0,0.00053972,120]
[331512490,1720445102561,-500.0,0.00053972,120]
[331512491,1720445102651,-615.39,0.00053972,120]
[331512492,1720445102740,-2430.97,0.00053972,120]
[331512493,1720445102827,-500.0,0.00053972,120]
[331512494,1720445102914,-500.0,0.00053972,120]
[331512495,1720445103004,-2066.55,0.00053972,120]
[331512496,1720445103108,-921.41,0.00053972,120]
[331512497,1720445103218,-548.85,0.00053972,120]